lending/lending_fUSD_20240131
["ID","MTS","AMOUNT","RATE_DAILY","PERIOD"]
[313049521,1706694649664,-500.0,0.00038356,5]
[313049522,1706694649674,-937.91,0.00038356,5]
[313049523,1706694649683,-500.0,0.00038356,5]
[313049524,1706694649693,-500.0,0.00038356,5]
[313049525,1706694649702,-794.23,0.00038356,5]
[313049526,1706694649711,-500.0,0.00038356,5]
[313049527,1706694649720,-5428.42,0.00038356,5]
[313049528,1706694649734,-500.0,0.00038356,5]
[313049529,1706694649744,-3250.72,0.00038356,5]
[313049530,1706694649753,-500.0,0.00038356,5]
[313049531,1706694649763,-500.0,0.00038356,5]
[313049532,1706694649773,-500.0,0.00038356,5]
[313049533,1706694649782,-500.0,0.00038356,5]
[313049534,1706694649792,-1723.78,0.00038356,5]
[313049535,1706694649802,-500.0,0.00038356,5]
[313049536,1706694649812,-500.0,0.00038356,5]
[313049537,1706694649822,-1600.13,0.00038356,2]
[313049538,1706694649832,-500.0,0.00038356,5]
[313049539,1706694649842,-500.0,0.00038356,5]
[313049540,1706694649852,-500.0,0.00038356,5]
[313049541,1706694649861,-500.0,0.00038356,5]
[313049542,1706694649869,-3841.13,0.00038356,5]
[313049543,1706694649879,-500.0,0.00038356,5]
[313049544,1706694649888,-575.31395523,0.00038356,5]
[313049545,1706694649898,-2499.59,0.00038356,5]
[313049546,1706694649907,-521.9789713,0.00038356,5]
[313049547,1706694649916,-916.73,0.00038356,5]
[313049548,1706694649926,-508.14774365,0.00038356,5]
[313049549,1706694649936,-500.0,0.00038356,5]
[313049550,1706694649946,-500.0,0.00038356,5]
[313049551,1706694649956,-500.0,0.00038356,5]
[313049552,1706694649967,-1345.99,0.00038356,5]
[313049553,1706694649981,-1935.43,0.00038356,5]
[313049554,1706694649991,-586.84487756,0.00038356,5]
[313049555,1706694650001,-1282.3,0.00038356,5]
[313049556,1706694650011,-532.83809482,0.00038356,5]
[313049557,1706694650021,-319.58087686,0.00038356,5]
[313049558,1706694650031,-866.24,0.00038356,5]
[313049559,1706694650040,-500.0,0.00038356,5]
[313049560,1706694650050,-501.06,0.00038356,5]
[313049561,1706694650061,-500.0,0.00038356,5]
[313049562,1706694650070,-1553.81,0.00038356,5]
[313049563,1706694650080,-529.37548837,0.00038356,5]
[313049564,1706694650089,-568.95518032,0.00038356,5]
[313049565,1706694650099,-795.16,0.00038356,5]
[313049566,1706694650108,-716.93,0.00038356,5]
[313049567,1706694650118,-473.67854491,0.00038356,5]
[313049568,1706694650128,-581.64881467,0.00038356,5]
[313049569,1706694650137,-1701.51,0.00038356,5]
[313049570,1706694650146,-500.0,0.00038356,5]
[313049571,1706694650156,-500.0,0.00038356,5]
[313049572,1706694650166,-500.0,0.00038356,5]
[313049573,1706694650175,-166.50273407,0.00038356,5]
[313049574,1706694650185,-500.0,0.00038356,5]
[313049575,1706694650194,-500.0,0.00038356,5]
[313049576,1706694650204,-8182.09,0.00038356,5]
[313049577,1706694650213,-500.0,0.00038356,5]
[313049578,1706694650222,-500.0,0.00038356,5]
[313049579,1706694650231,-500.0,0.00038356,5]
[313049580,1706694650240,-500.0,0.00038356,5]
[313049581,1706694650252,-645.66908359,0.00038356,5]
[313049582,1706694650264,-395.52296558,0.00038356,5]
[313049583,1706694650274,-554.64018274,0.00038356,5]
[313049584,1706694650283,-500.0,0.00038356,5]
[313049585,1706694650293,-500.0,0.00038356,5]
[313049586,1706694650302,-1231.59,0.00038356,5]
[313049587,1706694650312,-500.0,0.00038356,5]
[313049588,1706694650322,-578.28997725,0.00038356,5]
[313049589,1706694650331,-500.0,0.00038356,5]
[313049590,1706694650341,-2488.68,0.00038356,5]
[313049591,1706694650352,-500.0,0.00038356,5]
[313049592,1706694650361,-288.16124852,0.00038356,5]
[313049593,1706694650371,-500.0,0.00038356,5]
[313049594,1706694650380,-500.0,0.00038356,5]
[313049595,1706694650390,-500.0,0.00038356,5]
[313049596,1706694650400,-500.0,0.00038356,5]
[313049597,1706694650409,-500.0,0.00038356,5]
[313049598,1706694650418,-500.0,0.00038356,5]
[313049599,1706694650428,-500.0,0.00038356,5]
[313049600,1706694650438,-2438.4,0.00038356,5]
[313049601,1706694650448,-250.0,0.00038356,3]
[313049602,1706694650457,-500.0,0.00038356,5]
[313049603,1706694650467,-630.62,0.00038356,5]
[313049604,1706694650476,-500.0,0.00038356,5]
[313049605,1706694650486,-500.0,0.00038356,5]
[313049606,1706694650495,-500.0,0.00038356,5]
[313049607,1706694650506,-6886.74,0.00038356,5]
[313049608,1706694650515,-1589.99,0.00038356,5]
[313049609,1706694650525,-500.0,0.00038356,5]
[313049610,1706694650534,-5341.94,0.00038356,5]
[313049611,1706694650543,-500.0,0.00038356,5]
[313049612,1706694650553,-500.0,0.00038356,5]
[313049613,1706694650563,-2893.31,0.00038356,5]
[313049614,1706694650572,-1171.68,0.00038356,5]
[313049615,1706694650582,-500.0,0.00038356,5]
[313049616,1706694650591,-469.94003806,0.00038356,5]
[313049617,1706694650600,-1344.97,0.00038356,5]
[313049618,1706694650609,-627.97,0.00038356,5]
[313049619,1706694650619,-1574.66,0.00038356,5]
[313049620,1706694650629,-500.0,0.00038356,5]
[313049621,1706694650638,-500.0,0.00038356,5]
[313049622,1706694650647,-1680.53,0.00038356,5]
[313049623,1706694650657,-5421.11,0.00038356,5]
[313049624,1706694650666,-671.46,0.00038356,5]
[313049625,1706694650676,-500.0,0.00038356,5]
[313049626,1706694650685,-500.0,0.00038356,5]
[313049627,1706694650695,-607.45760955,0.00038356,5]
[313049628,1706694650705,-500.0,0.00038356,5]
[313049629,1706694650714,-1906.82,0.00038356,5]
[313049630,1706694650723,-539.0466698,0.00038356,5]
[313049631,1706694650733,-603.98789139,0.00038356,5]
[313049632,1706694650742,-539.51330086,0.00038356,5]
[313049633,1706694650752,-577.93740576,0.00038356,5]
[313049634,1706694650761,-500.0,0.00038356,5]
[313049635,1706694650770,-570.44,0.00038356,5]
[313049636,1706694650779,-636.47,0.00038356,5]
[313049637,1706694650789,-795.9,0.00038356,5]
[313049638,1706694650799,-2775.51,0.00038356,5]
[313049639,1706694650808,-500.0,0.00038356,5]
[313049640,1706694650818,-1259.66,0.00038356,5]
[313049641,1706694650827,-500.0,0.00038356,5]
[313049642,1706694650837,-500.0,0.00038356,5]
[313049643,1706694650846,-580.39316402,0.00038356,5]
[313049644,1706694650855,-1151.18,0.00038356,5]
[313049645,1706694650864,-500.0,0.00038356,5]
[313049646,1706694650873,-500.0,0.00038356,5]
[313049647,1706694650883,-500.0,0.00038356,5]
[313049648,1706694650892,-500.0,0.00038356,5]
[313049649,1706694650901,-564.87,0.00038356,5]
[313049650,1706694650911,-1296.01,0.00038356,5]
[313049651,1706694650921,-500.0,0.00038356,5]
[313049652,1706694650930,-1074.73,0.00038356,5]
[313049653,1706694650939,-2425.31,0.00038356,5]
[313049654,1706694650949,-3009.11,0.00038356,5]
[313049655,1706694650958,-500.0,0.00038356,5]
[313049656,1706694650967,-500.0,0.00038356,5]
[313049657,1706694650977,-500.0,0.00038356,2]
[313049658,1706694650988,-3095.04,0.00038356,5]
[313049659,1706694650997,-500.0,0.00038356,5]
[313049660,1706694651006,-500.0,0.00038356,5]
[313049661,1706694651015,-546.74127358,0.00038356,5]
[313049662,1706694651024,-579.50191848,0.00038356,5]
[313049663,1706694651033,-500.0,0.00038356,5]
[313049664,1706694651042,-500.0,0.00038356,5]
[313049665,1706694651055,-741.97,0.00038356,2]
[313049666,1706694651064,-500.0,0.00038356,5]
[313049667,1706694651074,-618.57,0.00038356,5]
[313049668,1706694651083,-500.0,0.00038356,5]
[313049669,1706694651093,-500.0,0.00038356,5]
[313049670,1706694651102,-500.0,0.00038356,5]
[313049671,1706694651111,-1533.89,0.00038356,5]
[313049672,1706694651121,-514.5127703,0.00038356,5]
[313049673,1706694651130,-621.35,0.00038356,5]
[313049674,1706694651139,-1562.28,0.00038356,5]
[313049675,1706694651148,-1131.88,0.00038356,5]
[313049676,1706694651158,-500.0,0.00038356,5]
[313049677,1706694651168,-500.0,0.00038356,5]
[313049678,1706694651177,-1000.0,0.00038356,2]
[313049679,1706694651187,-500.0,0.00038356,5]
[313049680,1706694651197,-500.0,0.00038356,5]
[313049681,1706694651207,-500.0,0.00038356,2]
[313049682,1706694651216,-2108.04,0.00038356,5]
[313049683,1706694651226,-500.0,0.00038356,5]
[313049684,1706694651235,-500.0,0.00038356,5]
[313049685,1706694651246,-3901.96,0.00038356,5]
[313049686,1706694651259,-1224.84,0.00038356,5]
[313049687,1706694651268,-1312.53,0.00038356,5]
[313049688,1706694651278,-542.16,0.00038356,5]
[313049689,1706694651287,-500.0,0.00038356,5]
[313049690,1706694651297,-500.0,0.00038356,5]
[313049691,1706694651307,-500.0,0.00038356,5]
[313049692,1706694651316,-500.0,0.00038356,2]
[313049693,1706694651325,-500.0,0.00038356,5]
[313049694,1706694651335,-195.85538138,0.0003837,20]
[313049695,1706694651345,-151.0131,0.00038448,11]
[313049696,1706694651354,-151.0131,0.00038548,11]
[313049697,1706694651364,-150.0,0.00038548,2]
[313049698,1706694651374,-485.65206005,0.00038548,2]
[313049699,1706694651383,-176.76,0.00038644,2]
[313049700,1706694651392,-151.0131,0.00038648,11]
[313049701,1706694651402,-1200.0,0.000387,14]
[313049702,1706694651411,-6857.22,0.000387,4]
[313049703,1706694651421,-200.0,0.00038733,120]
[313049704,1706694651430,-151.0131,0.00038748,11]
[313049705,1706694651440,-17558.16047558,0.000388,4]
[313049706,1706694651449,-1500.0,0.000388,14]
[313049707,1706694651606,-151.0131,0.00038848,11]
[313049708,1706694651615,-2216.02888235,0.0003888,2]
[313049709,1706694651625,-2216.02888228,0.0003888,2]
[313049710,1706694651634,-2216.02888228,0.0003888,2]
[313049711,1706694651643,-2216.02888228,0.0003888,2]
[313049712,1706694651652,-2216.02888228,0.0003888,2]
[313049713,1706694651661,-2216.02888228,0.0003888,2]
[313049714,1706694651671,-500.0,0.00038893,5]
[313049715,1706694651680,-1000.0,0.000389,2]
[313049716,1706694651690,-500.0,0.000389,7]
[313049717,1706694651699,-300.0,0.000389,14]
[313049718,1706694651709,-500.0,0.00038903,5]
[313049719,1706694651717,-500.0,0.00038903,5]
[313049720,1706694651727,-189.99357005,0.00038903,2]
[313049721,1706694651736,-256.70602712,0.00038903,2]
[313049722,1706694651745,-20970.90417212,0.00038904,2]
[313049723,1706694651754,-500.0,0.00038904,5]
[313049724,1706694651764,-540.19139979,0.00038904,5]
[313049725,1706694651773,-315.0573742,0.00038904,5]
[313049726,1706694651782,-500.0,0.00038904,5]
[313049727,1706694651791,-500.0,0.00038904,5]
[313049728,1706694651801,-500.0,0.00038904,5]
[313049729,1706694651810,-530.16868822,0.00038904,5]
[313049730,1706694651819,-500.0,0.00038904,5]
[313049731,1706694651827,-520.02380661,0.00038904,5]
[313049732,1706694651837,-500.0,0.00038904,5]
[313049733,1706694651846,-500.0,0.00038904,5]
[313049734,1706694651855,-500.0,0.00038904,5]
[313049735,1706694651864,-603.31498123,0.00038904,5]
[313049736,1706694651873,-500.0,0.00038904,5]
[313049737,1706694651881,-535.60005953,0.00038904,5]
[313049738,1706694651890,-500.0,0.00038904,5]
[313049739,1706694651899,-163.43554111,0.00038904,5]
[313049740,1706694651908,-500.0,0.00038904,5]
[313049741,1706694651917,-954.59,0.00038904,5]
[313049742,1706694651926,-614.95,0.00038904,5]
[313049743,1706694651936,-571.74315301,0.00038904,5]
[313049744,1706694651945,-500.0,0.00038904,5]
[313049745,1706694651954,-500.0,0.00038904,5]
[313049746,1706694651965,-500.0,0.00038904,5]
[313049747,1706694651975,-500.0,0.00038904,5]
[313049748,1706694651986,-500.0,0.00038904,5]
[313049749,1706694651995,-505.17855631,0.00038904,5]
[313049750,1706694652007,-596.46088029,0.00038904,5]
[313049751,1706694652017,-500.0,0.00038904,5]
[313049752,1706694652026,-500.0,0.00038904,5]
[313049753,1706694652035,-556.03528365,0.00038904,2]
[313049754,1706694652046,-337.38501958,0.00038904,5]
[313049755,1706694652056,-416.76766262,0.00038904,2]
[313049756,1706694652065,-166.02299671,0.00038904,5]
[313049757,1706694652075,-500.0,0.00038904,5]
[313049758,1706694652084,-523.05,0.00038904,5]
[313049759,1706694652092,-500.0,0.00038904,5]
[313049760,1706694652101,-500.0,0.00038904,5]
[313049761,1706694652110,-500.0,0.00038904,5]
[313049762,1706694652119,-708.95,0.00038904,5]
[313049763,1706694652129,-1406.6,0.00038904,5]
[313049764,1706694652138,-500.0,0.00038904,5]
[313049765,1706694652147,-500.0,0.00038904,5]
[313049766,1706694652156,-500.0,0.00038904,5]
[313049767,1706694652166,-500.0,0.00038904,5]
[313049768,1706694652175,-500.0,0.00038904,5]
[313049769,1706694652184,-500.0,0.00038904,5]
[313049770,1706694652194,-500.0,0.00038904,5]
[313049771,1706694652203,-500.0,0.00038904,5]
[313049772,1706694652213,-500.0,0.00038904,5]
[313049773,1706694652222,-500.0,0.00038904,5]
[313049774,1706694652232,-500.0,0.00038904,5]
[313049775,1706694652241,-500.0,0.00038904,5]
[313049776,1706694652257,-525.50362144,0.00038904,5]
[313049777,1706694652266,-500.0,0.00038904,5]
[313049778,1706694652276,-597.43174125,0.00038904,5]
[313049779,1706694652285,-612.53,0.00038904,5]
[313049780,1706694652295,-594.59343196,0.00038904,5]
[313049781,1706694652304,-500.0,0.00038904,5]
[313049782,1706694652314,-204.29202016,0.00038904,2]
[313049783,1706694652323,-500.0,0.00038904,5]
[313049784,1706694652334,-500.0,0.00038904,5]
[313049785,1706694652343,-500.0,0.00038904,5]
[313049786,1706694652353,-500.0,0.00038904,5]
[313049787,1706694652366,-500.0,0.00038904,5]
[313049788,1706694652375,-500.0,0.00038904,5]
[313049789,1706694652385,-500.0,0.00038904,5]
[313049790,1706694652394,-481.41826723,0.00038904,2]
[313049791,1706694652403,-500.0,0.00038904,5]
[313049792,1706694652413,-545.03611025,0.00038904,5]
[313049793,1706694652423,-919.19,0.00038904,5]
[313049794,1706694652432,-500.0,0.00038904,5]
[313049795,1706694652441,-500.0,0.00038904,2]
[313049796,1706694652450,-156.48310645,0.00038904,5]
[313049797,1706694652462,-1099.01,0.00038904,7]
[313049798,1706694652471,-988.7,0.00038904,5]
[313049799,1706694652482,-500.0,0.00038904,5]
[313049800,1706694652491,-500.0,0.00038904,5]
[313049801,1706694652503,-500.0,0.00038904,5]
[313049802,1706694652513,-340.29619062,0.00038904,2]
[313049803,1706694652522,-500.35,0.00038904,2]
[313049804,1706694652532,-499.47741185,0.00038904,2]
[313049805,1706694652541,-383.7789162,0.00038904,2]
[313049806,1706694652552,-500.0,0.00038904,5]
[313049807,1706694652562,-500.0,0.00038904,5]
[313049808,1706694652572,-500.0,0.00038904,5]
[313049809,1706694652581,-721.58,0.00038904,5]
[313049810,1706694652591,-632.73479084,0.00038904,5]
[313049811,1706694652600,-500.0,0.00038904,5]
[313049812,1706694652610,-500.0,0.00038904,5]
[313049813,1706694652619,-500.0,0.00038904,5]
[313049814,1706694652630,-500.0,0.00038904,5]
[313049815,1706694652640,-281.34167432,0.00038904,5]
[313049816,1706694652651,-230.97956721,0.00038904,5]
[313049817,1706694652661,-1042.81,0.00038904,5]
[313049818,1706694652670,-500.0,0.00038904,5]
[313049819,1706694652680,-540.17,0.00038904,5]
[313049820,1706694652689,-500.0,0.00038904,5]
[313049821,1706694652699,-558.22223621,0.00038904,5]
[313049822,1706694652708,-500.0,0.00038904,5]
[313049823,1706694652717,-500.0,0.00038904,5]
[313049824,1706694652726,-500.0,0.00038904,5]
[313049825,1706694652735,-633.84709136,0.00038904,5]
[313049826,1706694652744,-500.0,0.00038904,5]
[313049827,1706694652755,-500.0,0.00038904,5]
[313049828,1706694652764,-500.0,0.00038904,5]
[313049829,1706694652774,-500.0,0.00038904,5]
[313049830,1706694652784,-500.0,0.00038904,2]
[313049831,1706694652794,-180.20584397,0.00038904,5]
[313049832,1706694652803,-500.0,0.00038904,5]
[313049833,1706694652814,-500.0,0.00038904,5]
[313049834,1706694652823,-565.28622959,0.00038904,5]
[313049835,1706694652832,-500.0,0.00038904,5]
[313049836,1706694652843,-497.81038,0.00038904,2]
[313049837,1706694652854,-500.0,0.00038904,2]
[313049838,1706694652863,-577.86,0.00038904,5]
[313049839,1706694652873,-500.0,0.00038904,5]
[313049840,1706694652883,-500.0,0.00038904,5]
[313049841,1706694652892,-500.0,0.00038904,5]
[313049842,1706694652904,-500.0,0.00038904,5]
[313049843,1706694652915,-500.0,0.00038904,5]
[313049844,1706694652926,-500.0,0.00038904,5]
[313049845,1706694652935,-500.0,0.00038904,5]
[313049846,1706694652944,-696.00319361,0.00038904,2]
[313049847,1706694652955,-792.53,0.00038904,5]
[313049848,1706694652965,-500.0,0.00038904,5]
[313049849,1706694652974,-500.0,0.00038904,5]
[313049850,1706694652983,-571.78042996,0.00038904,5]
[313049851,1706694652996,-306.59251697,0.00038904,5]
[313049852,1706694653008,-583.71,0.00038904,5]
[313049853,1706694653018,-500.0,0.00038904,5]
[313049854,1706694653028,-604.76286411,0.00038904,5]
[313049855,1706694653038,-500.0,0.00038904,5]
[313049856,1706694653047,-500.0,0.00038904,5]
[313049857,1706694653057,-603.42,0.00038904,5]
[313049858,1706694653066,-500.0,0.00038904,5]
[313049859,1706694653077,-583.15769008,0.00038904,5]
[313049860,1706694653087,-500.0,0.00038904,5]
[313049861,1706694653097,-569.98802999,0.00038904,5]
[313049862,1706694653107,-500.0,0.00038904,5]
[313049863,1706694653117,-500.0,0.00038904,5]
[313049864,1706694653128,-500.0,0.00038904,5]
[313049865,1706694653138,-383.0108507,0.00038904,5]
[313049866,1706694653147,-500.0,0.00038904,5]
[313049867,1706694653157,-500.0,0.00038904,5]
[313049868,1706694653167,-1000.0,0.00038904,7]
[313049869,1706694653177,-500.0,0.00038904,10]
[313049870,1706694653188,-500.0,0.00038904,5]
[313049871,1706694653198,-500.0,0.00038904,5]
[313049872,1706694653209,-500.0,0.00038904,5]
[313049873,1706694653220,-535.27204756,0.00038904,5]
[313049874,1706694653231,-641.84,0.00038904,5]
[313049875,1706694653240,-772.86,0.00038904,5]
[313049876,1706694653253,-500.0,0.00038904,5]
[313049877,1706694653265,-582.43797925,0.00038904,5]
[313049878,1706694653275,-942.86,0.00038904,5]
[313049879,1706694653286,-500.0,0.00038904,5]
[313049880,1706694653296,-500.0,0.00038904,5]
[313049881,1706694653307,-500.0,0.00038904,5]
[313049882,1706694653317,-591.92591511,0.00038904,5]
[313049883,1706694653327,-1247.5,0.00038904,5]
[313049884,1706694653336,-500.0,0.00038904,5]
[313049885,1706694653345,-500.0,0.00038904,5]
[313049886,1706694653354,-500.0,0.00038904,5]
[313049887,1706694653363,-1000.0,0.00038904,7]
[313049888,1706694653372,-500.0,0.00038904,5]
[313049889,1706694653382,-554.63030607,0.00038904,5]
[313049890,1706694653391,-500.0,0.00038904,5]
[313049891,1706694653401,-500.0,0.00038904,5]
[313049892,1706694653410,-500.0,0.00038904,5]
[313049893,1706694653419,-500.0,0.00038904,5]
[313049894,1706694653428,-500.0,0.00038904,5]
[313049895,1706694653438,-500.0,0.00038904,5]
[313049896,1706694653447,-500.0,0.00038904,5]
[313049897,1706694653456,-500.0,0.00038904,5]
[313049898,1706694653465,-500.0,0.00038904,5]
[313049899,1706694653474,-500.0,0.00038904,5]
[313049900,1706694653483,-500.0,0.00038904,5]
[313049901,1706694653492,-573.31,0.00038904,5]
[313049902,1706694653501,-403.83789845,0.00038904,5]
[313049903,1706694653511,-500.0,0.00038904,5]
[313049904,1706694653520,-886.57,0.00038904,5]
[313049905,1706694653530,-500.0,0.00038904,5]
[313049906,1706694653539,-203.2171788,0.00038904,5]
[313049907,1706694653548,-500.0,0.00038904,5]
[313049908,1706694653558,-618.95785222,0.00038904,5]
[313049909,1706694653568,-592.37705764,0.00038904,5]
[313049910,1706694653577,-802.81,0.00038904,5]
[313049911,1706694653586,-265.54679519,0.00038904,5]
[313049912,1706694653595,-150.0,0.00038904,5]
[313049913,1706694653605,-532.96072774,0.00038904,5]
[313049914,1706694653614,-500.0,0.00038904,5]
[313049915,1706694653624,-500.0,0.00038904,5]
[313049916,1706694653633,-580.02,0.00038904,5]
[313049917,1706694653642,-500.0,0.00038904,5]
[313049918,1706694653651,-623.81308626,0.00038904,5]
[313049919,1706694653659,-500.0,0.00038904,5]
[313049920,1706694653669,-500.0,0.00038904,5]
[313049921,1706694653678,-500.0,0.00038904,5]
[313049922,1706694653687,-213.21941715,0.00038904,5]
[313049923,1706694653696,-301.45704444,0.00038904,5]
[313049924,1706694653705,-769.97,0.00038904,5]
[313049925,1706694653715,-500.0,0.00038904,5]
[313049926,1706694653725,-991.05,0.00038904,2]
[313049927,1706694653734,-829.21,0.00038904,5]
[313049928,1706694653743,-500.0,0.00038904,5]
[313049929,1706694653875,-637.92418917,0.00038904,5]
[313049930,1706694653884,-1772.16,0.00038904,5]
[313049931,1706694653894,-500.0,0.00038904,5]
[313049932,1706694653902,-500.0,0.00038904,5]
[313049933,1706694653911,-500.0,0.00038904,5]
[313049934,1706694653921,-640.95245965,0.00038904,5]
[313049935,1706694653930,-500.0,0.00038904,5]
[313049936,1706694653939,-500.0,0.00038904,5]
[313049937,1706694653948,-500.0,0.00038904,5]
[313049938,1706694653957,-156.66755942,0.00038904,5]
[313049939,1706694653966,-601.64145312,0.00038904,5]
[313049940,1706694653975,-500.0,0.00038904,5]
[313049941,1706694653985,-418.3759593,0.00038904,5]
[313049942,1706694653994,-610.13522606,0.00038904,5]
[313049943,1706694654003,-601.55104523,0.00038904,5]
[313049944,1706694654012,-500.0,0.00038904,5]
[313049945,1706694654021,-500.0,0.00038904,5]
[313049946,1706694654030,-500.0,0.00038904,5]
[313049947,1706694654039,-500.0,0.00038904,5]
[313049948,1706694654048,-562.44989206,0.00038904,14]
[313049949,1706694654058,-500.0,0.00038904,5]
[313049950,1706694654068,-500.0,0.00038904,5]
[313049951,1706694654079,-494.78922274,0.00038904,5]
[313049952,1706694654089,-551.9,0.00038904,5]
[313049953,1706694654098,-369.66844039,0.00038904,5]
[313049954,1706694654108,-207.85410101,0.00038904,5]
[313049955,1706694654117,-500.0,0.00038904,5]
[313049956,1706694654127,-636.91564866,0.00038904,5]
[313049957,1706694654136,-500.0,0.00038904,5]
[313049958,1706694654147,-576.97,0.00038904,5]
[313049959,1706694654156,-500.0,0.00038904,5]
[313049960,1706694654167,-500.0,0.00038904,5]
[313049961,1706694654176,-500.0,0.00038904,5]
[313049962,1706694654187,-500.0,0.00038904,5]
[313049963,1706694654197,-500.0,0.00038904,5]
[313049964,1706694654206,-500.0,0.00038904,5]
[313049965,1706694654215,-500.0,0.00038904,5]
[313049966,1706694654225,-500.0,0.00038904,5]
[313049967,1706694654235,-742.58,0.00038904,5]
[313049968,1706694654246,-500.0,0.00038904,5]
[313049969,1706694654256,-593.47889405,0.00038904,5]
[313049970,1706694654267,-500.0,0.00038904,5]
[313049971,1706694654277,-576.37236837,0.00038904,5]
[313049972,1706694654286,-500.0,0.00038904,5]
[313049973,1706694654296,-500.0,0.00038904,5]
[313049974,1706694654306,-500.0,0.00038904,5]
[313049975,1706694654316,-500.0,0.00038904,5]
[313049976,1706694654326,-500.0,0.00038904,5]
[313049977,1706694654338,-500.0,0.00038904,5]
[313049978,1706694654347,-500.0,0.00038904,5]
[313049979,1706694654357,-303.71538986,0.00038904,5]
[313049980,1706694654367,-500.0,0.00038904,5]
[313049981,1706694654376,-193.22488508,0.00038904,5]
[313049982,1706694654386,-500.0,0.00038904,5]
[313049983,1706694654395,-500.0,0.00038904,5]
[313049984,1706694654405,-500.0,0.00038904,5]
[313049985,1706694654414,-866.57,0.00038904,5]
[313049986,1706694654425,-500.0,0.00038904,5]
[313049987,1706694654434,-958.12,0.00038904,5]
[313049988,1706694654443,-500.0,0.00038904,5]
[313049989,1706694654453,-500.0,0.00038904,5]
[313049990,1706694654463,-500.0,0.00038904,5]
[313049991,1706694654473,-500.0,0.00038904,5]
[313049992,1706694654482,-2301.48,0.00038904,5]
[313049993,1706694654492,-500.0,0.00038904,5]
[313049994,1706694654501,-714.51,0.00038904,5]
[313049995,1706694654511,-717.95,0.00038904,5]
[313049996,1706694654519,-528.8,0.00038904,5]
[313049997,1706694654529,-521.16660117,0.00038904,5]
[313049998,1706694654538,-500.0,0.00038904,5]
[313049999,1706694654548,-650.16,0.00038904,5]
[313050000,1706694654557,-556.87664586,0.00038904,5]
[313050001,1706694654567,-424.76652614,0.00038904,5]
[313050002,1706694654577,-500.0,0.00038904,5]
[313050003,1706694654587,-568.5066555,0.00038904,5]
[313050004,1706694654597,-500.0,0.00038904,5]
[313050005,1706694654606,-500.0,0.00038904,5]
[313050006,1706694654617,-769.18,0.00038904,5]
[313050007,1706694654627,-2602.84,0.00038904,5]
[313050008,1706694654638,-559.99459356,0.00038904,5]
[313050009,1706694654648,-606.34918613,0.00038904,5]
[313050010,1706694654658,-516.61456551,0.00038904,5]
[313050011,1706694654668,-500.0,0.00038904,5]
[313050012,1706694654677,-531.38845883,0.00038904,5]
[313050013,1706694654687,-500.0,0.00038904,5]
[313050014,1706694654697,-500.0,0.00038904,5]
[313050015,1706694654707,-861.22,0.00038904,2]
[313050016,1706694654716,-1102.08,0.00038904,5]
[313050017,1706694654726,-500.0,0.00038904,5]
[313050018,1706694654735,-500.0,0.00038904,5]
[313050019,1706694654745,-500.0,0.00038904,5]
[313050020,1706694654755,-500.0,0.00038904,5]